bitfinex-derivatives/quotes_BTCF0:USTF0_20241226
["timestamp","ask_amount","ask_price","bid_price","bid_amount"]
[1735229925633,0.001,96533.0,96528.0,0.01021523]
[1735229925830,0.001,96533.0,96522.0,0.05285]
[1735229926027,0.001,96533.0,96523.0,0.01021909]
[1735229926227,0.001,96533.0,96524.0,0.01021909]
[1735229926426,0.001,96533.0,96520.0,0.15488623]
[1735229926427,0.001,96538.0,96525.0,0.01021909]
[1735229926732,0.001,96538.0,96526.0,0.25481915]
[1735229926932,0.001,96533.0,96527.0,0.01021909]
[1735229927131,0.001,96533.0,96528.0,0.01021909]
[1735229927435,0.051844,96534.0,96529.0,0.01021909]
[1735229927634,0.051844,96534.0,96530.0,0.01021909]
[1735229927829,1.5,96537.0,96531.0,0.01021909]
[1735229928032,1.5,96537.0,96532.0,0.01021909]
[1735229928232,0.051841,96539.0,96533.0,0.01021909]
[1735229928436,0.15488623,96550.0,96534.0,0.01021909]
[1735229928733,0.051843,96536.0,96535.0,0.01021909]
[1735229929641,0.051844,96533.0,96532.0,0.24460006]
[1735229930936,0.052844,96533.0,96532.0,0.24560006]
[1735229931129,0.052844,96533.0,96532.0,0.001]
[1735229933228,0.051848,96526.0,96525.0,0.24460006]
[1735229934136,0.051853,96518.0,96517.0,0.08900006]
[1735229934851,0.05182,96579.0,96517.0,0.09925154]
[1735229935036,0.0008,96544.0,96537.0,0.15488623]
[1735229935235,0.01290418,96561.0,96538.0,0.01025148]
[1735229935433,0.01290418,96561.0,96539.0,0.01025148]
[1735229935434,0.18499297,96540.0,96539.0,0.01025148]
[1735229936836,0.19399297,96540.0,96539.0,0.01125148]
[1735229937241,0.009,96540.0,96539.0,0.01125148]
[1735229938534,0.009,96540.0,96539.0,0.30090813]
[1735229938940,0.00155435,96559.0,96539.0,0.30090813]
[1735229939144,0.00155435,96559.0,96549.0,0.15488623]
[1735229939328,0.051834,96552.0,96550.0,0.01025148]
[1735229939532,0.05184,96541.0,96539.0,0.001]
[1735229940441,0.051845,96532.0,96531.0,0.36928497]
[1735229940637,0.051842,96538.0,96527.0,0.01311791]
[1735229940838,0.051842,96538.0,96528.0,0.01022318]
[1735229941140,0.051842,96538.0,96529.0,0.01022318]
[1735229941342,0.051842,96538.0,96522.0,0.05185]
[1735229941543,0.051842,96538.0,96523.0,0.01022232]
[1735229941846,0.051843,96537.0,96524.0,0.01022232]
[1735229942043,0.009,96541.0,96530.0,0.051846]
[1735229942231,0.009,96541.0,96531.0,0.31102232]
[1735229942431,0.009,96541.0,96532.0,0.01022232]
[1735229942742,0.009,96541.0,96533.0,0.01022232]
[1735229942932,0.009,96541.0,96534.0,0.01022232]
[1735229943137,0.00155424,96554.0,96537.0,0.051842]
[1735229943334,0.051832,96557.0,96538.0,0.01021886]
[1735229943637,0.051832,96557.0,96539.0,0.01021886]
[1735229943841,0.15488623,96560.0,96540.0,0.01021886]
[1735229944039,0.15488623,96560.0,96541.0,0.01021886]
[1735229944250,0.10880634,96568.0,96542.0,0.01021886]
[1735229944539,0.10880634,96568.0,96543.0,0.01021886]
[1735229944739,0.10880634,96568.0,96537.0,0.30634822]
[1735229944740,0.051832,96557.0,96544.0,0.01021886]
[1735229944943,0.051832,96557.0,96545.0,0.01021886]
[1735229945148,0.051832,96557.0,96546.0,0.01021886]
[1735229945342,0.051832,96557.0,96547.0,0.01021886]
[1735229945545,0.051832,96557.0,96548.0,0.01021886]
[1735229945742,0.051832,96557.0,96537.0,0.30634822]
[1735229945743,0.051832,96556.0,96549.0,0.01021886]
[1735229945942,0.051833,96555.0,96550.0,0.01021886]
[1735229946146,0.051833,96555.0,96551.0,0.01021886]
[1735229946351,0.051833,96555.0,96545.0,0.001]
[1735229946643,0.051833,96555.0,96548.0,0.001]
[1735229947141,0.051833,96555.0,96550.0,0.001]
[1735229947346,0.051833,96555.0,96551.0,0.01022431]
[1735229947548,0.051833,96555.0,96552.0,0.01022431]
[1735229947749,0.051833,96555.0,96553.0,0.01022431]
[1735229948049,0.051833,96555.0,96550.0,0.001]
[1735229948354,0.051834,96553.0,96551.0,0.01022847]
[1735229948534,0.10309373,96560.0,96538.0,0.30634822]
[1735229948740,0.05184,96541.0,96540.0,0.01270285]
[1735229948935,0.05184,96541.0,96538.0,0.16725107]
[1735229949144,0.051841,96539.0,96538.0,0.16725107]
[1735229949347,0.051844,96534.0,96533.0,0.36928497]
[1735229950250,0.051848,96526.0,96525.0,0.35383931]
[1735229950442,1.551848,96526.0,96525.0,0.35383931]
[1735229950643,0.05185,96523.0,96522.0,0.00052]
[1735229950847,0.051855,96513.0,96512.0,0.01252887]
[1735229951138,0.051857,96510.0,96506.0,0.0971]
[1735229952242,0.051857,96510.0,96506.0,0.0981]
[1735229952443,0.051857,96510.0,96506.0,0.11072721]
[1735229952843,0.051857,96510.0,96506.0,0.10972721]
[1735229953247,0.15495914,96531.0,96506.0,0.10972721]
[1735229953555,0.051858,96509.0,96506.0,0.10972721]
[1735229953944,0.051858,96507.0,96506.0,0.10972721]
[1735229954758,0.051856,96512.0,96506.0,0.10972721]
[1735229954953,0.051851,96521.0,96506.0,0.10972721]
[1735229955148,0.00155461,96529.0,96506.0,0.10972721]
[1735229955348,0.051852,96519.0,96506.0,0.10972721]
[1735229955649,0.00155461,96529.0,96506.0,0.10972721]
[1735229955848,0.051853,96517.0,96506.0,0.10972721]
[1735229956050,0.051854,96516.0,96506.0,0.10972721]
[1735229956348,0.051854,96516.0,96506.0,0.11072721]
[1735229956550,0.05185,96523.0,96506.0,0.11472721]
[1735229956753,0.0928533,96526.0,96506.0,0.11472721]
[1735229956952,0.051852,96519.0,96506.0,0.11472721]
[1735229957251,0.00155461,96529.0,96506.0,0.11472721]
[1735229957456,0.051849,96525.0,96506.0,0.16658621]
[1735229957758,0.00155461,96529.0,96511.0,0.051856]
[1735229957759,0.05340161,96529.0,96511.0,0.051856]
[1735229957962,0.0928533,96530.0,96519.0,0.15477907]
[1735229958258,0.0928533,96530.0,96520.0,0.1933]
[1735229958457,0.051846,96531.0,96520.0,0.1933]
[1735229959547,0.051841,96540.0,96520.0,0.1933]
[1735229959747,0.0928533,96546.0,96530.0,0.15477907]
[1735229959959,0.0928533,96546.0,96531.0,0.0947]
[1735229961154,0.051837,96547.0,96531.0,0.0947]
[1735229961349,0.15477907,96560.0,96531.0,0.0947]
[1735229961558,0.0928533,96562.0,96531.0,0.0947]
[1735229961559,0.051834,96553.0,96534.0,0.051844]
[1735229961864,0.051833,96555.0,96537.0,0.051842]
[1735229962052,0.003,96546.0,96537.0,0.051842]
[1735229962251,0.003,96546.0,96531.0,0.0947]
[1735229962556,0.051834,96553.0,96534.0,0.001]
[1735229963149,0.0928533,96565.0,96537.0,0.002]
[1735229963349,0.15477907,96560.0,96537.0,0.002]
[1735229963549,0.051834,96553.0,96537.0,0.002]
[1735229963761,0.051829,96562.0,96534.0,0.003]
[1735229963962,0.051834,96553.0,96540.0,0.15477907]
[1735229964352,1.62374106,96569.0,96540.0,0.15477907]
[1735229964353,0.0928533,96566.0,96540.0,0.15477907]
[1735229964866,0.051832,96557.0,96540.0,0.15477907]
[1735229965256,0.051832,96556.0,96540.0,0.15477907]
[1735229965769,0.051832,96557.0,96540.0,0.15477907]
[1735229965964,0.051835,96551.0,96537.0,0.002]
[1735229966161,0.051836,96548.0,96537.0,0.002]
[1735229966461,0.051839,96543.0,96540.0,0.001]
[1735229966760,0.05184,96542.0,96540.0,0.001]
[1735229966956,1.5,96541.0,96537.0,0.002]
[1735229967155,0.051842,96539.0,96537.0,0.002]
[1735229968761,0.051845,96532.0,96531.0,0.01205418]
[1735229968963,0.051849,96524.0,96520.0,0.0991]
[1735229969670,0.05185,96523.0,96520.0,0.0991]
[1735229970064,0.05185,96523.0,96520.0,0.11123097]
[1735229970269,0.051851,96522.0,96520.0,0.01213097]
[1735229970466,0.003,96532.0,96512.0,0.1004]
[1735229970467,0.051855,96513.0,96512.0,0.1004]
[1735229970673,0.003,96532.0,96512.0,0.1004]
[1735229970674,0.051853,96518.0,96512.0,0.1004]
[1735229970873,0.051853,96517.0,96512.0,0.1004]
[1735229971063,0.051854,96515.0,96512.0,0.11226342]
[1735229972171,0.051854,96515.0,96512.0,0.11426342]
[1735229972569,0.051854,96515.0,96512.0,0.11526342]
[1735229973570,0.051855,96514.0,96512.0,0.01486342]
[1735229973872,0.051855,96514.0,96512.0,0.003]
[1735229974960,0.051852,96520.0,96512.0,0.003]
[1735229975157,0.09281666,96528.0,96512.0,0.003]
[1735229975158,0.12375555,96523.0,96512.0,0.003]
[1735229975467,0.09281666,96519.0,96512.0,0.003]
[1735229975662,0.09281666,96519.0,96512.0,0.002]
[1735229976257,0.09281666,96519.0,96512.0,0.001]
[1735229976466,0.09281666,96519.0,96509.0,0.01208346]
[1735229976667,0.09281666,96519.0,96502.0,0.051861]
[1735229976974,0.051851,96521.0,96507.0,0.18382426]
[1735229977165,0.051852,96520.0,96507.0,0.18382426]
[1735229977768,0.10314729,96530.0,96507.0,0.18382426]
[1735229977964,0.001,96519.0,96510.0,0.10314729]
[1735229978360,0.09281666,96533.0,96519.0,0.051852]
[1735229978565,0.09281666,96533.0,96520.0,0.34649829]
[1735229979069,0.09281666,96533.0,96520.0,0.29464729]
[1735229979269,0.09281666,96533.0,96522.0,0.05185]
[1735229979471,0.051841,96540.0,96522.0,0.05185]
[1735229979681,0.00155447,96542.0,96522.0,0.05185]
[1735229979890,0.051851,96522.0,96520.0,0.37784426]
[1735229980177,0.051851,96522.0,96520.0,0.37732426]
[1735229980563,0.051851,96522.0,96520.0,0.1915]
[1735229981368,0.051851,96522.0,96520.0,0.1975]
[1735229982175,0.051851,96522.0,96520.0,0.1935]
[1735229983064,0.051851,96522.0,96520.0,0.002]
[1735229983368,0.09281666,96529.0,96520.0,0.002]
[1735229983565,0.051851,96522.0,96520.0,0.001]
[1735229985269,0.051853,96518.0,96517.0,0.01241782]
[1735229985469,0.001,96522.0,96507.0,0.28242426]
[1735229985664,0.001,96522.0,96516.0,0.051853]
[1735229985871,0.002,96522.0,96520.0,0.051851]
[1735229986172,0.09281666,96533.0,96520.0,0.051851]
[1735229986374,0.28878062,96550.0,96520.0,0.15499829]
[1735229986375,0.09281666,96529.0,96520.0,0.15499829]
[1735229987180,0.09281666,96529.0,96520.0,0.15799829]
[1735229987873,0.09281666,96541.0,96523.0,0.18382426]
[1735229988380,0.051841,96539.0,96523.0,0.18382426]
[1735229988570,0.051842,96538.0,96524.0,0.0956]
[1735229989278,0.051843,96536.0,96524.0,0.0956]
[1735229989977,0.051847,96528.0,96524.0,0.0956]
[1735229990175,0.10314729,96534.0,96523.0,0.002]
[1735229990476,0.051844,96533.0,96524.0,0.002]
[1735229990779,0.10314729,96534.0,96524.0,0.002]
[1735229990979,0.051849,96525.0,96524.0,0.002]
[1735229992675,0.051854,96515.0,96514.0,0.18382426]
[1735229993674,0.051854,96515.0,96495.0,0.18382426]
[1735229993879,0.051858,96508.0,96495.0,0.18382426]
[1735229994274,0.051858,96508.0,96507.0,0.1104958]
[1735229995481,0.051858,96508.0,96507.0,0.1134958]
[1735229995679,0.051858,96508.0,96507.0,0.003]
[1735229997176,0.051858,96508.0,96507.0,0.004]
[1735229998084,0.351858,96508.0,96507.0,0.004]
[1735229998282,0.06399587,96508.0,96507.0,0.004]
[1735229998586,0.06399587,96508.0,96491.0,0.00155453]
[1735229998587,0.051867,96492.0,96491.0,0.00155453]
[1735229999386,0.051858,96509.0,96491.0,0.01372881]
[1735229999580,0.051864,96498.0,96491.0,0.01372881]
[1735229999780,0.12400096,96497.0,96491.0,0.01372881]
[1735229999982,0.12400096,96497.0,96495.0,0.051865]
[1735230000582,0.12400096,96497.0,96491.0,0.01372881]
[1735230000777,0.15501875,96505.0,96491.0,0.01372881]
[1735230000982,0.15501875,96505.0,96496.0,0.051864]
[1735230001177,0.09295084,96508.0,96496.0,0.23568826]
[1735230002485,0.05341093,96512.0,96496.0,0.23568826]
[1735230002680,0.10314729,96510.0,96496.0,0.18382426]
[1735230002887,0.00155493,96512.0,96496.0,0.18382426]
[1735230003084,0.00155493,96512.0,96496.0,0.18982426]
[1735230003290,0.051858,96508.0,96496.0,0.19182426]
[1735230003483,0.051858,96508.0,96496.0,0.18582426]
[1735230003682,0.051858,96508.0,96496.0,0.008]
[1735230004083,0.00155493,96512.0,96496.0,0.008]
[1735230004279,0.051859,96507.0,96496.0,0.008]
[1735230004486,0.051859,96507.0,96496.0,0.002]
[1735230004686,0.051859,96507.0,96496.0,0.008]
[1735230004890,0.00155493,96512.0,96496.0,0.008]
[1735230005088,0.10314729,96510.0,96496.0,0.008]
[1735230005576,0.10314729,96510.0,96496.0,0.002]
[1735230005886,0.05186,96504.0,96496.0,0.007]
[1735230006289,0.00155493,96512.0,96496.0,0.007]
[1735230006496,0.09295084,96511.0,96496.0,0.051864]
[1735230006684,0.09295084,96511.0,96496.0,0.057864]
[1735230007491,0.09295084,96511.0,96500.0,0.10314729]
[1735230007690,0.09295084,96511.0,96501.0,0.0972]
[1735230007895,0.00155493,96512.0,96501.0,0.0972]
[1735230008191,0.00155493,96512.0,96502.0,0.1037]
[1735230008579,0.00155493,96512.0,96503.0,0.1037]
[1735230009296,0.05186,96505.0,96503.0,0.1037]
[1735230009884,0.05186,96505.0,96503.0,0.1057]
[1735230010292,0.05186,96505.0,96503.0,0.002]
[1735230010490,0.051862,96501.0,96500.0,0.18382426]
[1735230010684,0.051862,96501.0,96494.0,0.18382426]
[1735230010685,0.051865,96495.0,96494.0,0.18382426]
[1735230011887,0.15501875,96505.0,96492.0,0.0983]
[1735230012089,0.15701875,96505.0,96492.0,0.0983]
[1735230012594,0.15501875,96505.0,96494.0,0.001]
[1735230012893,0.09295042,96508.0,96494.0,0.001]
[1735230013094,0.09295042,96508.0,96492.0,0.0983]
[1735230013295,0.09295042,96508.0,96492.0,0.1003]
[1735230013493,0.10314729,96502.0,96492.0,0.1003]
[1735230013692,0.10314729,96502.0,96492.0,0.0983]
[1735230013898,0.10314729,96502.0,96494.0,0.001]
[1735230014788,0.10314729,96504.0,96494.0,0.001]
[1735230015289,0.10314729,96504.0,96492.0,0.001]
[1735230015290,0.2003,96503.0,96492.0,0.003]
[1735230015692,0.5003,96503.0,96492.0,0.003]
[1735230015887,0.5003,96503.0,96494.0,0.001]
[1735230016287,0.5003,96503.0,96492.0,0.001]
[1735230016493,0.5003,96503.0,96492.0,0.003]
[1735230016694,0.5003,96503.0,96492.0,0.002]
[1735230016895,0.5003,96503.0,96481.0,0.18382426]
[1735230017198,0.10314729,96491.0,96461.0,0.27922426]
[1735230017409,0.10314729,96485.0,96461.0,0.27922426]
[1735230017700,0.10314729,96479.0,96461.0,0.27922426]
[1735230017884,0.10314729,96479.0,96465.0,0.01214106]
[1735230018089,0.10314729,96480.0,96461.0,0.27922426]
[1735230018293,0.20629458,96480.0,96469.0,0.004]
[1735230018689,0.0902,96479.0,96469.0,0.004]
[1735230019093,0.3902,96479.0,96469.0,0.004]
[1735230019403,0.0085,96478.0,96469.0,0.004]
[1735230019699,0.0085,96478.0,96469.0,0.011]
[1735230019886,0.3085,96478.0,96469.0,0.011]
[1735230020089,0.1005,96477.0,96469.0,0.003]
[1735230020398,0.1005,96477.0,96469.0,0.008]
[1735230020586,0.4005,96477.0,96469.0,0.008]
[1735230020896,0.4005,96477.0,96448.0,0.1018]
[1735230021099,0.002,96478.0,96450.0,0.10314729]
[1735230021306,0.002,96478.0,96460.0,0.10314729]
[1735230021600,0.002,96478.0,96461.0,0.0953]
[1735230021799,0.002,96478.0,96468.0,0.10314729]
[1735230022001,0.15501875,96473.0,96469.0,0.0962]
[1735230022196,0.18563333,96479.0,96469.0,0.0962]
[1735230022393,0.003,96477.0,96469.0,0.0962]
[1735230022795,0.18563333,96479.0,96469.0,0.0962]
[1735230022997,0.004,96478.0,96469.0,0.0962]
[1735230023496,0.004,96477.0,96469.0,0.0962]
[1735230024200,0.004,96477.0,96469.0,0.10816017]
[1735230024503,0.09284479,96498.0,96469.0,0.10816017]
[1735230024504,0.09284479,96498.0,96469.0,0.40816017]
[1735230024704,0.09284479,96498.0,96480.0,0.10314729]
[1735230025407,0.09284479,96498.0,96470.0,0.10314729]
[1735230025605,0.09284479,96498.0,96470.0,0.20064729]
[1735230025901,0.002,96498.0,96484.0,0.18382426]
[1735230026105,0.002,96498.0,96485.0,0.1014]
[1735230026406,0.10314729,96500.0,96485.0,0.1014]
[1735230026606,0.002,96498.0,96485.0,0.1014]
[1735230028598,0.002,96498.0,96485.0,0.11327632]
[1735230029203,0.10314729,96500.0,96485.0,0.11427632]
[1735230030895,1.5953,96499.0,96485.0,0.01287632]
[1735230031811,0.01205784,96508.0,96485.0,0.01287632]
[1735230032103,0.09284479,96502.0,96485.0,0.01287632]
[1735230032307,0.002,96499.0,96485.0,0.01287632]
[1735230032499,0.002,96499.0,96485.0,0.001]
[1735230032910,0.09284479,96502.0,96485.0,0.001]
[1735230033407,0.09284479,96502.0,96480.0,0.10314729]
[1735230033610,0.002,96499.0,96485.0,0.001]
[1735230034908,0.10314729,96500.0,96480.0,0.01191833]
[1735230035113,0.10314729,96500.0,96485.0,0.001]
[1735230035610,0.002,96499.0,96485.0,0.001]
[1735230036004,0.2564,96498.0,96485.0,0.001]
[1735230036203,0.2564,96498.0,96473.0,0.18382426]
[1735230036498,0.10314729,96490.0,96485.0,0.001]
[1735230036705,0.10514729,96500.0,96485.0,0.001]
[1735230037313,0.09284479,96486.0,96485.0,0.001]
[1735230037909,0.09284479,96486.0,96474.0,0.1945]
[1735230038207,0.09284479,96486.0,96485.0,0.001]
[1735230038513,0.002,96499.0,96485.0,0.001]
[1735230039219,0.002,96486.0,96485.0,0.001]
[1735230040303,0.09284479,96501.0,96485.0,0.001]
[1735230040505,0.09284479,96501.0,96490.0,0.10314729]
[1735230041116,0.002,96499.0,96490.0,0.10314729]
[1735230041716,0.09284479,96501.0,96493.0,0.18382426]
[1735230041717,0.002,96501.0,96493.0,0.18382426]
[1735230042619,0.09284479,96513.0,96493.0,0.18382426]
[1735230042912,0.19599208,96520.0,96497.0,0.18382426]
[1735230043114,0.001,96501.0,96500.0,0.10314729]
[1735230043303,0.09284479,96520.0,96498.0,0.1865]
[1735230043506,0.09284479,96520.0,96500.0,0.10314729]
[1735230044319,0.09284479,96527.0,96500.0,0.28697155]
[1735230044616,0.09284479,96527.0,96500.0,0.18382426]
[1735230044818,0.09284479,96527.0,96501.0,0.0927]
[1735230045717,0.01225387,96528.0,96501.0,0.0927]
[1735230047423,0.10314729,96530.0,96501.0,0.0927]
[1735230048018,0.01233106,96529.0,96501.0,0.0927]
[1735230048518,0.10314729,96530.0,96501.0,0.0927]
[1735230048915,0.10314729,96511.0,96501.0,0.0927]
[1735230049109,0.20629458,96511.0,96497.0,0.19617335]
[1735230049423,0.0928,96510.0,96497.0,0.18382426]
[1735230049616,1.5,96509.0,96497.0,0.18382426]
[1735230049820,1.5559,96509.0,96497.0,0.18382426]
[1735230050006,1.8559,96509.0,96497.0,0.18382426]
[1735230050318,1.5559,96509.0,96487.0,0.01210088]
[1735230050504,1.5,96509.0,96484.0,0.18382426]
[1735230050709,0.10314729,96500.0,96484.0,0.18382426]
[1735230050916,1.5008,96509.0,96484.0,0.18382426]
[1735230051104,1.5,96509.0,96484.0,0.18382426]
[1735230051305,0.19594729,96510.0,96484.0,0.18382426]
[1735230051509,0.09284479,96506.0,96482.0,0.18382426]
[1735230052115,0.09284479,96506.0,96490.0,0.10314729]
[1735230052521,0.09284479,96507.0,96485.0,0.18382426]
[1735230053620,0.10314729,96510.0,96493.0,0.18382426]
[1735230053813,0.10314729,96510.0,96494.0,0.0975]
[1735230054016,0.10314729,96504.0,96493.0,0.18382426]
[1735230054421,0.10314729,96510.0,96493.0,0.18382426]
[1735230054826,0.09284479,96508.0,96488.0,0.18382426]
[1735230055126,0.10314729,96500.0,96488.0,0.18382426]
[1735230055429,0.09284479,96508.0,96488.0,0.18382426]
[1735230055820,0.09284479,96502.0,96490.0,0.18382426]
[1735230056217,0.09284479,96502.0,96490.0,0.28697155]
[1735230056725,0.09284479,96502.0,96490.0,0.18382426]
[1735230057323,0.10314729,96510.0,96493.0,0.18382426]
[1735230057819,0.09284479,96513.0,96493.0,0.18382426]
[1735230058026,0.09284479,96513.0,96494.0,0.092]
[1735230058622,0.10314729,96510.0,96494.0,0.092]
[1735230060129,0.09284479,96509.0,96494.0,0.092]
[1735230061635,0.19599208,96510.0,96494.0,0.092]
[1735230062115,0.19599208,96510.0,96490.0,0.18382426]
[1735230062116,0.59913937,96510.0,96490.0,0.18382426]
[1735230062323,0.10314729,96500.0,96490.0,0.18382426]
[1735230062523,0.1477,96499.0,96490.0,0.18382426]
[1735230063321,0.09284479,96498.0,96486.0,0.01220308]
[1735230063631,0.09284479,96498.0,96482.0,0.18382426]
[1735230063823,0.10314729,96492.0,96482.0,0.18382426]
[1735230064832,0.09284479,96491.0,96490.0,0.001]
[1735230065023,0.09284479,96491.0,96476.0,0.01224513]
[1735230065220,0.09284479,96491.0,96482.0,0.001]
[1735230065221,0.10314729,96486.0,96482.0,0.001]
[1735230065537,0.39356479,96491.0,96474.0,0.18382426]
[1735230065730,0.10314729,96484.0,96474.0,0.18382426]
[1735230066028,0.10314729,96484.0,96482.0,0.001]
[1735230066228,0.09364479,96491.0,96482.0,0.001]
[1735230066431,0.09284479,96486.0,96482.0,0.001]
[1735230068130,0.12404022,96487.0,96475.0,0.0964]
[1735230068325,0.10314729,96485.0,96464.0,0.0997]
[1735230068527,0.10314729,96474.0,96464.0,0.0997]
[1735230069324,0.01175691,96492.0,96464.0,0.0997]
[1735230069325,0.20629458,96480.0,96464.0,0.01178717]
[1735230069518,0.20629458,96480.0,96463.0,0.0974]
[1735230069519,0.10314729,96474.0,96463.0,0.0974]
[1735230069717,0.10314729,96474.0,96464.0,0.007]
[1735230070120,0.10314729,96474.0,96464.0,0.01]
[1735230070333,0.0926,96473.0,96464.0,0.01]
[1735230070628,0.0926,96473.0,96459.0,0.18382426]
[1735230070629,0.2414,96473.0,96459.0,0.18382426]
[1735230070828,1.5,96472.0,96449.0,0.03252426]
[1735230071128,0.20629458,96459.0,96444.0,0.01761619]
[1735230071430,1.60366024,96472.0,96444.0,0.01761619]
[1735230071431,0.20629458,96454.0,96444.0,0.01761619]
[1735230072027,0.20629458,96454.0,96437.0,0.30628162]
[1735230072028,0.50629458,96454.0,96437.0,0.30628162]
[1735230072221,0.10314729,96447.0,96437.0,0.30628162]
[1735230072424,0.40402,96446.0,96415.0,0.42944327]
[1735230072634,0.20629458,96425.0,96415.0,0.42892327]
[1735230072926,0.00155613,96445.0,96411.0,0.1949]
[1735230073329,0.10314729,96430.0,96411.0,0.1949]
[1735230073533,0.10314729,96421.0,96411.0,0.1949]
[1735230073724,0.10314729,96430.0,96415.0,0.004]
[1735230074334,0.09272324,96438.0,96415.0,0.004]
[1735230075029,0.10314729,96440.0,96415.0,0.004]
[1735230075433,0.10314729,96440.0,96415.0,0.001]
[1735230076035,0.10314729,96440.0,96415.0,0.003]
[1735230076229,0.10314729,96430.0,96415.0,0.002]
[1735230079031,0.10314729,96430.0,96415.0,0.001]
[1735230079530,1.5,96429.0,96415.0,0.001]
[1735230079729,0.10314729,96425.0,96415.0,0.001]
[1735230079924,0.0571,96424.0,96415.0,0.001]
[1735230080331,0.3571,96424.0,96400.0,0.1]
[1735230080533,0.10314729,96410.0,96400.0,0.1]
[1735230081238,1.5,96409.0,96400.0,0.1]
[1735230081631,1.5,96409.0,96400.0,0.101]
[1735230082022,1.8,96409.0,96380.0,0.01163983]
[1735230082332,0.15524525,96390.0,96370.0,0.0991]
[1735230082540,0.15524525,96380.0,96370.0,0.11038221]
[1735230083238,0.15524525,96380.0,96370.0,0.01128221]
[1735230083535,0.15524525,96380.0,96371.0,0.0963]
[1735230083738,0.0571,96397.0,96371.0,0.0963]
[1735230083739,0.15524525,96381.0,96371.0,0.0963]
[1735230083930,0.15524525,96381.0,96358.0,0.099]
[1735230084133,0.0579,96397.0,96359.0,0.0963]
[1735230084442,0.15524525,96368.0,96359.0,0.0963]
[1735230084956,1.50072,96396.0,96359.0,0.0963]
[1735230084957,0.15524525,96369.0,96359.0,0.0963]
[1735230085529,0.15524525,96369.0,96359.0,0.1053]
[1735230085725,0.6104905,96369.0,96359.0,0.009]
[1735230085929,0.0555,96368.0,96359.0,0.009]
[1735230086132,0.0565,96368.0,96359.0,0.009]
[1735230086337,0.3565,96368.0,96359.0,0.009]
[1735230087437,0.3565,96368.0,96330.0,0.30148162]
[1735230087438,0.3585,96368.0,96330.0,0.30148162]
[1735230087627,0.002,96368.0,96359.0,0.008]
[1735230088026,0.002,96368.0,96330.0,0.30148162]
[1735230088245,1.802,96368.0,96330.0,0.30148162]
[1735230088537,1.806,96368.0,96330.0,0.30148162]
[1735230088839,1.813,96368.0,96330.0,0.30148162]
[1735230089235,1.804,96368.0,96330.0,0.30148162]
[1735230089436,0.15524525,96340.0,96330.0,0.30348162]
[1735230089642,0.15524525,96340.0,96330.0,0.2921]
[1735230090145,0.15524525,96340.0,96330.0,0.2931]
[1735230090340,0.15524525,96340.0,96330.0,0.1941]
[1735230090537,0.15524525,96340.0,96330.0,0.0993]
[1735230090739,0.15524525,96340.0,96330.0,0.003]
[1735230091042,0.6104905,96340.0,96302.0,0.0955]
[1735230091245,0.15524525,96312.0,96302.0,0.0955]
[1735230092642,0.00155772,96334.0,96302.0,0.4035]
[1735230092841,0.15524525,96330.0,96302.0,0.1035]
[1735230093945,0.15524525,96330.0,96302.0,0.4055]
[1735230094141,0.15524525,96330.0,96302.0,0.4045]
[1735230094530,0.15524525,96330.0,96302.0,0.3975]
[1735230094738,0.15624525,96330.0,96302.0,0.4045]
[1735230095238,0.15524525,96312.0,96302.0,0.1045]
[1735230095436,0.001,96330.0,96302.0,0.1045]
[1735230095437,0.15524525,96320.0,96302.0,0.1045]
[1735230096948,0.001,96330.0,96302.0,0.1045]
[1735230097132,0.001,96320.0,96302.0,0.1045]
[1735230097733,0.001,96320.0,96302.0,0.1025]
[1735230098043,0.15624525,96320.0,96302.0,0.1045]
[1735230099342,0.15524525,96312.0,96302.0,0.1045]
[1735230100537,0.15524525,96312.0,96302.0,0.1025]
[1735230100741,0.15524525,96312.0,96302.0,0.0975]
[1735230100943,0.15524525,96312.0,96302.0,0.1045]
[1735230101339,0.001,96320.0,96302.0,0.1015]
[1735230101340,0.15524525,96320.0,96302.0,0.1015]
[1735230101540,0.15524525,96320.0,96302.0,0.1005]
[1735230101749,0.00155772,96334.0,96302.0,0.1005]
[1735230102046,0.051955,96328.0,96311.0,0.051964]
[1735230102240,0.051955,96328.0,96302.0,0.0995]
[1735230102448,0.00155772,96334.0,96318.0,0.15524525]
[1735230102634,0.12363099,96359.0,96318.0,0.15524525]
[1735230102839,0.12363099,96359.0,96346.0,0.051945]
[1735230103155,0.051937,96362.0,96347.0,0.195]
[1735230103339,0.09272324,96364.0,96349.0,0.051943]
[1735230103738,0.051937,96361.0,96349.0,0.051943]
[1735230103939,0.15524525,96360.0,96349.0,0.051943]
[1735230104141,0.15524525,96360.0,96347.0,0.195]
[1735230104447,0.051942,96353.0,96347.0,0.195]
[1735230104640,0.15524525,96360.0,96310.0,0.15680254]
[1735230104842,0.15524525,96340.0,96320.0,0.0954]
[1735230105037,0.15524525,96350.0,96349.0,0.002]
[1735230105344,0.051943,96351.0,96349.0,0.002]
[1735230105647,0.009,96353.0,96349.0,0.001]
[1735230105947,0.009,96353.0,96350.0,0.0935]
[1735230106341,0.009,96353.0,96351.0,0.051942]
[1735230106541,0.009,96361.0,96350.0,0.0935]
[1735230106748,0.009,96361.0,96360.0,0.051938]
[1735230106951,0.34904,96369.0,96360.0,0.051938]
[1735230107349,0.051937,96361.0,96353.0,0.051941]
[1735230107743,0.009,96361.0,96350.0,0.0945]
[1735230107944,0.051942,96352.0,96350.0,0.0945]
[1735230108538,0.051942,96352.0,96350.0,0.0935]
[1735230108942,0.05188717,96352.0,96350.0,0.0935]
[1735230109260,0.018,96361.0,96350.0,0.0935]
[1735230109444,0.34904,96369.0,96355.0,0.05194]
[1735230109846,0.34904,96369.0,96350.0,0.0935]
[1735230110140,0.051935,96366.0,96352.0,0.051942]
[1735230110745,0.051935,96365.0,96352.0,0.051942]
[1735230111653,0.051935,96365.0,96352.0,0.053942]